[Event "Titled Tuesday Blitz January 17 Late 2023"]
[White "Svane, Frederik"]
[Black "Fernandez Garcia, Gumersindo"]
[WhiteFideId "12923044"]
[BlackFideId "24516740"]
[WhiteElo "2600"]
[BlackElo "2160"]
[Result "1-0"]
[Round "02"]
[TimeControl "180+2"]
[Date "2023.01.17"]
[WhiteClock "0:01:16"]
[BlackClock "0:00:20"]

1. e4 {[%clk 0:03:00]}  c5 {[%clk 0:02:59]} 2. Nf3 {[%clk 0:03:01]}  e6 {[%clk 0:02:57]} 3. Be2 {[%clk 0:03:00]}  Nc6 {[%clk 0:02:57]} 4. O-O {[%clk 0:03:00]}  g6 {[%clk 0:02:57]} 5. d4 {[%clk 0:03:00]}  cxd4 {[%clk 0:02:53]} 6. Nxd4 {[%clk 0:03:01]}  Bg7 {[%clk 0:02:52]} 7. Nb5 {[%clk 0:03:01]}  d5 {[%clk 0:02:49]} 8. exd5 {[%clk 0:03:01]}  exd5 {[%clk 0:02:49]} 9. Qxd5 {[%clk 0:02:59]}  Qxd5 {[%clk 0:02:31]} 10. Nc7+ {[%clk 0:02:58]}  Kf8 {[%clk 0:02:32]} 11. Nxd5 {[%clk 0:02:59]}  Bf5 {[%clk 0:02:30]} 12. Na3 {[%clk 0:02:41]}  Rd8 {[%clk 0:02:19]} 13. Ne3 {[%clk 0:02:37]}  Be6 {[%clk 0:02:18]} 14. c3 {[%clk 0:02:38]}  Nge7 {[%clk 0:02:14]} 15. Bc4 {[%clk 0:02:34]}  Bxc4 {[%clk 0:02:06]} 16. Nexc4 {[%clk 0:02:35]}  f5 {[%clk 0:01:56]} 17. Bg5 {[%clk 0:02:32]}  h6 {[%clk 0:01:53]} 18. Bxe7+ {[%clk 0:02:32]}  Kxe7 {[%clk 0:01:46]} 19. Rad1 {[%clk 0:02:18]}  Rxd1 {[%clk 0:01:38]} 20. Rxd1 {[%clk 0:02:19]}  Rd8 {[%clk 0:01:38]} 21. Rxd8 {[%clk 0:02:19]}  Kxd8 {[%clk 0:01:38]} 22. Kf1 {[%clk 0:02:19]}  a6 {[%clk 0:01:35]} 23. Ke2 {[%clk 0:02:18]}  b5 {[%clk 0:01:33]} 24. Ne3 {[%clk 0:02:18]}  b4 {[%clk 0:01:26]} 25. Nb1 {[%clk 0:02:15]}  bxc3 {[%clk 0:01:21]} 26. Nxc3 {[%clk 0:02:16]}  Kd7 {[%clk 0:01:20]} 27. Nc4 {[%clk 0:02:05]}  Nb4 {[%clk 0:01:14]} 28. a3 {[%clk 0:02:02]}  Nc6 {[%clk 0:01:13]} 29. Kd3 {[%clk 0:02:00]}  Ke6 {[%clk 0:01:13]} 30. b4 {[%clk 0:01:59]}  g5 {[%clk 0:01:07]} 31. Na4 {[%clk 0:01:54]}  Bf8 {[%clk 0:00:59]} 32. f3 {[%clk 0:01:53]}  Kd5 {[%clk 0:00:54]} 33. Ncb6+ {[%clk 0:01:44]}  Ke6 {[%clk 0:00:48]} 34. Nc4 {[%clk 0:01:42]}  Kd5 {[%clk 0:00:48]} 35. Nc3+ {[%clk 0:01:42]}  Ke6 {[%clk 0:00:47]} 36. g4 {[%clk 0:01:41]}  Be7 {[%clk 0:00:33]} 37. h3 {[%clk 0:01:38]}  Bf8 {[%clk 0:00:32]} 38. Ne2 {[%clk 0:01:29]}  Kd5 {[%clk 0:00:31]} 39. Ne3+ {[%clk 0:01:28]}  Ke5 {[%clk 0:00:26]} 40. Nxf5 {[%clk 0:01:27]}  a5 {[%clk 0:00:22]} 41. Ned4 {[%clk 0:01:16]}  Nxd4 {[%clk 0:00:20]} 42. Nxd4 {[%clk 0:01:17]}  axb4 {[%clk 0:00:20]} 43. axb4 {[%clk 0:01:16]}  Kf4 {[%clk 0:00:20]} 44. Ne6+ {[%clk 0:01:16]}  Kxf3 {[%clk 0:00:20]} 45. Nxf8 {[%clk 0:01:16]} 1-0


[Site "https://www.chess.com"]

[Event "Titled Tuesday Blitz January 17 Late 2023"]
[White "Adewumi, Tanitoluwa"]
[Black "Rasulov, Vugar"]
[WhiteFideId "30966396"]
[BlackFideId "13402390"]
[WhiteElo "2283"]
[BlackElo "2523"]
[Result "0-1"]
[Round "02"]
[TimeControl "180+2"]
[Date "2023.01.17"]
[WhiteClock "0:00:03"]
[BlackClock "0:01:28"]

1. e4 {[%clk 0:02:59]}  c5 {[%clk 0:02:59]} 2. Nf3 {[%clk 0:02:55]}  e6 {[%clk 0:02:59]} 3. g3 {[%clk 0:02:54]}  Nc6 {[%clk 0:02:59]} 4. Bg2 {[%clk 0:02:53]}  Nf6 {[%clk 0:02:59]} 5. d3 {[%clk 0:02:52]}  d5 {[%clk 0:02:54]} 6. Qe2 {[%clk 0:02:51]}  Be7 {[%clk 0:02:53]} 7. O-O {[%clk 0:02:40]}  O-O {[%clk 0:02:53]} 8. e5 {[%clk 0:02:39]}  Nd7 {[%clk 0:02:51]} 9. c4 {[%clk 0:02:40]}  Nb6 {[%clk 0:02:33]} 10. Bf4 {[%clk 0:02:23]}  Bd7 {[%clk 0:02:31]} 11. Nc3 {[%clk 0:01:49]}  Nd4 {[%clk 0:02:31]} 12. Nxd4 {[%clk 0:01:13]}  cxd4 {[%clk 0:02:32]} 13. cxd5 {[%clk 0:01:05]}  dxc3 {[%clk 0:02:28]} 14. d6 {[%clk 0:01:05]}  Bg5 {[%clk 0:02:28]} 15. Bxg5 {[%clk 0:01:05]}  Qxg5 {[%clk 0:02:29]} 16. f4 {[%clk 0:01:06]}  Qd8 {[%clk 0:02:20]} 17. bxc3 {[%clk 0:01:06]}  Bc6 {[%clk 0:02:18]} 18. Bxc6 {[%clk 0:01:04]}  bxc6 {[%clk 0:02:19]} 19. d4 {[%clk 0:00:52]}  Rc8 {[%clk 0:02:11]} 20. Qa6 {[%clk 0:00:43]}  Qd7 {[%clk 0:02:05]} 21. Qa5 {[%clk 0:00:35]}  Nc4 {[%clk 0:02:01]} 22. Qc5 {[%clk 0:00:33]}  Nd2 {[%clk 0:01:53]} 23. Rfd1 {[%clk 0:00:29]}  Ne4 {[%clk 0:01:52]} 24. Qa5 {[%clk 0:00:22]}  c5 {[%clk 0:01:52]} 25. Rac1 {[%clk 0:00:20]}  f6 {[%clk 0:01:47]} 26. Re1 {[%clk 0:00:18]}  Qc6 {[%clk 0:01:44]} 27. Qxa7 {[%clk 0:00:08]}  Rf7 {[%clk 0:01:35]} 28. Qa3 {[%clk 0:00:06]}  h5 {[%clk 0:01:31]} 29. dxc5 {[%clk 0:00:05]}  fxe5 {[%clk 0:01:28]} 30. fxe5 {[%clk 0:00:03]}  Ng5 {[%clk 0:01:28]} 31. Re3 {[%clk 0:00:03]}  Nh3# {[%clk 0:01:28]} 0-1


[Site "https://www.chess.com"]

[Event "Titled Tuesday Blitz January 17 Late 2023"]
[White "Saveliev, Alexei"]
[Black "Hansen, Eric"]
[WhiteFideId "24128546"]
[BlackFideId "2606771"]
[WhiteElo "2385"]
[BlackElo "2609"]
[Result "0-1"]
[Round "02"]
[TimeControl "180+2"]
[Date "2023.01.17"]
[WhiteClock "0:00:04"]
[BlackClock "0:00:11"]

1. c4 {[%clk 0:03:00]}  b6 {[%clk 0:02:57]} 2. Nc3 {[%clk 0:03:01]}  Bb7 {[%clk 0:02:57]} 3. d4 {[%clk 0:03:01]}  g6 {[%clk 0:02:58]} 4. e4 {[%clk 0:03:00]}  Bg7 {[%clk 0:02:58]} 5. f4 {[%clk 0:03:01]}  e6 {[%clk 0:02:59]} 6. Nf3 {[%clk 0:03:00]}  d6 {[%clk 0:02:59]} 7. Bd3 {[%clk 0:03:00]}  Nd7 {[%clk 0:02:59]} 8. O-O {[%clk 0:03:01]}  Ne7 {[%clk 0:03:00]} 9. Be3 {[%clk 0:03:01]}  h6 {[%clk 0:03:00]} 10. Qd2 {[%clk 0:03:01]}  a6 {[%clk 0:03:00]} 11. Rae1 {[%clk 0:03:01]}  Nf6 {[%clk 0:02:53]} 12. Kh1 {[%clk 0:02:55]}  O-O {[%clk 0:02:47]} 13. f5 {[%clk 0:02:31]}  Ng4 {[%clk 0:02:46]} 14. Bg1 {[%clk 0:02:28]}  exf5 {[%clk 0:02:43]} 15. exf5 {[%clk 0:02:28]}  Nxf5 {[%clk 0:02:42]} 16. Bxf5 {[%clk 0:02:26]}  gxf5 {[%clk 0:02:43]} 17. h3 {[%clk 0:02:22]}  Nf6 {[%clk 0:02:43]} 18. d5 {[%clk 0:02:22]}  Nh5 {[%clk 0:02:26]} 19. Bh2 {[%clk 0:02:14]}  f4 {[%clk 0:01:56]} 20. Bxf4 {[%clk 0:02:05]}  Nxf4 {[%clk 0:01:56]} 21. Qxf4 {[%clk 0:02:05]}  Qf6 {[%clk 0:01:57]} 22. Qg3 {[%clk 0:01:52]}  Rae8 {[%clk 0:01:56]} 23. Ne4 {[%clk 0:01:33]}  Qg6 {[%clk 0:01:54]} 24. Qf4 {[%clk 0:01:33]}  Bc8 {[%clk 0:01:16]} 25. b3 {[%clk 0:01:19]}  f5 {[%clk 0:00:31]} 26. Ng3 {[%clk 0:01:16]}  Rxe1 {[%clk 0:00:30]} 27. Rxe1 {[%clk 0:01:17]}  Qf7 {[%clk 0:00:28]} 28. Re2 {[%clk 0:01:07]}  a5 {[%clk 0:00:27]} 29. Re1 {[%clk 0:00:57]}  Kh7 {[%clk 0:00:27]} 30. Qh4 {[%clk 0:00:53]}  Bf6 {[%clk 0:00:25]} 31. Qf4 {[%clk 0:00:51]}  Rg8 {[%clk 0:00:20]} 32. Nxf5 {[%clk 0:00:45]}  Bg5 {[%clk 0:00:20]} 33. Nxg5+ {[%clk 0:00:21]}  hxg5 {[%clk 0:00:20]} 34. Qf3 {[%clk 0:00:12]}  Bxf5 {[%clk 0:00:16]} 35. Rf1 {[%clk 0:00:10]}  Rf8 {[%clk 0:00:16]} 36. Qe3 {[%clk 0:00:10]}  Qg7 {[%clk 0:00:13]} 37. Qe2 {[%clk 0:00:05]}  Kh6 {[%clk 0:00:13]} 38. Qe3 {[%clk 0:00:05]}  Bg6 {[%clk 0:00:12]} 39. Re1 {[%clk 0:00:04]}  Qf6 {[%clk 0:00:11]} 0-1


[Site "https://www.chess.com"]

[Event "Titled Tuesday Blitz January 17 Late 2023"]
[White "Ibarra Jerez, Jose Carlos"]
[Black "Pham, Khoi"]
[WhiteFideId "2226332"]
[BlackFideId "1054988"]
[WhiteElo "2563"]
[BlackElo "2355"]
[Result "1-0"]
[Round "02"]
[TimeControl "180+2"]
[Date "2023.01.17"]
[WhiteClock "0:01:02"]
[BlackClock "0:00:49"]

1. e4 {[%clk 0:02:59]}  c5 {[%clk 0:02:58]} 2. Nc3 {[%clk 0:02:59]}  Nc6 {[%clk 0:02:55]} 3. Bb5 {[%clk 0:02:57]}  Nd4 {[%clk 0:02:51]} 4. Nf3 {[%clk 0:02:56]}  Nxb5 {[%clk 0:02:48]} 5. Nxb5 {[%clk 0:02:55]}  d6 {[%clk 0:02:33]} 6. d4 {[%clk 0:02:53]}  cxd4 {[%clk 0:02:32]} 7. Qxd4 {[%clk 0:02:51]}  Bd7 {[%clk 0:02:25]} 8. Nc3 {[%clk 0:02:46]}  e5 {[%clk 0:02:22]} 9. Qb4 {[%clk 0:02:41]}  Qc8 {[%clk 0:02:19]} 10. Bg5 {[%clk 0:02:28]}  h6 {[%clk 0:02:17]} 11. Bh4 {[%clk 0:02:27]}  g5 {[%clk 0:02:15]} 12. Bg3 {[%clk 0:02:27]}  Nf6 {[%clk 0:02:13]} 13. O-O-O {[%clk 0:02:23]}  a5 {[%clk 0:02:08]} 14. Qb6 {[%clk 0:02:04]}  Ra6 {[%clk 0:02:08]} 15. Qe3 {[%clk 0:02:04]}  b5 {[%clk 0:02:06]} 16. h4 {[%clk 0:01:50]}  g4 {[%clk 0:02:05]} 17. Nxe5 {[%clk 0:01:29]}  dxe5 {[%clk 0:02:05]} 18. Bxe5 {[%clk 0:01:30]}  Bg7 {[%clk 0:02:01]} 19. Bd6 {[%clk 0:01:21]}  Rxd6 {[%clk 0:01:36]} 20. Rxd6 {[%clk 0:01:22]}  O-O {[%clk 0:01:36]} 21. e5 {[%clk 0:01:19]}  Ne8 {[%clk 0:01:35]} 22. Nd5 {[%clk 0:01:19]}  Nxd6 {[%clk 0:01:17]} 23. Ne7+ {[%clk 0:01:18]}  Kh8 {[%clk 0:01:16]} 24. Nxc8 {[%clk 0:01:18]}  Nxc8 {[%clk 0:01:17]} 25. Rd1 {[%clk 0:01:13]}  Be6 {[%clk 0:01:17]} 26. Qc5 {[%clk 0:01:07]}  a4 {[%clk 0:00:53]} 27. Qxb5 {[%clk 0:01:07]}  a3 {[%clk 0:00:53]} 28. b3 {[%clk 0:01:03]}  Na7 {[%clk 0:00:51]} 29. Qc5 {[%clk 0:01:03]}  Nc8 {[%clk 0:00:49]} 30. Qxa3 {[%clk 0:01:03]}  Bxe5 {[%clk 0:00:49]} 31. Qxf8+ {[%clk 0:01:02]} 1-0


[Site "https://www.chess.com"]

[Event "Titled Tuesday Blitz January 17 Late 2023"]
[White "Remizov, Yaroslav"]
[Black "Richter, Paul"]
[WhiteFideId "34134015"]
[BlackFideId "2046350"]
[WhiteElo "2421"]
[BlackElo "2171"]
[Result "1-0"]
[Round "02"]
[TimeControl "180+2"]
[Date "2023.01.17"]
[WhiteClock "0:00:08"]
[BlackClock "0:00:02"]

1. e4 {[%clk 0:03:00]}  c5 {[%clk 0:02:59]} 2. Nf3 {[%clk 0:03:00]}  d6 {[%clk 0:02:59]} 3. d4 {[%clk 0:03:00]}  cxd4 {[%clk 0:03:00]} 4. Nxd4 {[%clk 0:03:01]}  Nf6 {[%clk 0:03:00]} 5. Nc3 {[%clk 0:03:01]}  g6 {[%clk 0:03:00]} 6. g3 {[%clk 0:02:57]}  Nc6 {[%clk 0:02:59]} 7. Bg2 {[%clk 0:02:56]}  Bd7 {[%clk 0:02:58]} 8. O-O {[%clk 0:02:52]}  Bg7 {[%clk 0:02:58]} 9. Nb3 {[%clk 0:02:48]}  O-O {[%clk 0:02:57]} 10. Re1 {[%clk 0:02:48]}  Rb8 {[%clk 0:02:55]} 11. a4 {[%clk 0:02:45]}  a6 {[%clk 0:02:52]} 12. a5 {[%clk 0:02:44]}  Be6 {[%clk 0:02:47]} 13. Nd5 {[%clk 0:02:30]}  Bxd5 {[%clk 0:02:07]} 14. exd5 {[%clk 0:02:31]}  Ne5 {[%clk 0:02:07]} 15. f4 {[%clk 0:02:31]}  Ned7 {[%clk 0:02:02]} 16. Be3 {[%clk 0:02:25]}  Re8 {[%clk 0:02:01]} 17. h3 {[%clk 0:02:23]}  h5 {[%clk 0:01:58]} 18. c4 {[%clk 0:02:14]}  Rc8 {[%clk 0:01:57]} 19. Qe2 {[%clk 0:02:01]}  Nc5 {[%clk 0:01:50]} 20. Nxc5 {[%clk 0:01:56]}  dxc5 {[%clk 0:01:51]} 21. Red1 {[%clk 0:01:49]}  Nd7 {[%clk 0:01:44]} 22. g4 {[%clk 0:01:35]}  hxg4 {[%clk 0:01:42]} 23. hxg4 {[%clk 0:01:36]}  Qc7 {[%clk 0:01:21]} 24. Ra3 {[%clk 0:01:26]}  Rb8 {[%clk 0:01:19]} 25. b3 {[%clk 0:01:04]}  b6 {[%clk 0:01:11]} 26. axb6 {[%clk 0:01:05]}  Rxb6 {[%clk 0:01:12]} 27. Qa2 {[%clk 0:00:53]}  Reb8 {[%clk 0:01:06]} 28. Rd3 {[%clk 0:00:46]}  Qa7 {[%clk 0:00:41]} 29. Ra5 {[%clk 0:00:43]}  Bd4 {[%clk 0:00:28]} 30. Bxd4 {[%clk 0:00:32]}  cxd4 {[%clk 0:00:29]} 31. c5 {[%clk 0:00:32]}  Rb5 {[%clk 0:00:13]} 32. Rxb5 {[%clk 0:00:25]}  Rxb5 {[%clk 0:00:14]} 33. c6 {[%clk 0:00:21]}  Nc5 {[%clk 0:00:14]} 34. Rh3 {[%clk 0:00:19]}  d3 {[%clk 0:00:12]} 35. Kh2 {[%clk 0:00:16]}  Qc7 {[%clk 0:00:10]} 36. Qf2 {[%clk 0:00:16]}  Rxb3 {[%clk 0:00:07]} 37. Qd4 {[%clk 0:00:09]}  f6 {[%clk 0:00:06]} 38. d6 {[%clk 0:00:08]}  Qxd6 {[%clk 0:00:01]} 39. Qxd6 {[%clk 0:00:08]}  exd6 {[%clk 0:00:02]} 40. c7 {[%clk 0:00:08]} 1-0


[Site "https://www.chess.com"]

[Event "Titled Tuesday Blitz January 17 Late 2023"]
[White "Sebag, Marie"]
[Black "Abdrlauf, Elham"]
[WhiteFideId "617822"]
[BlackFideId "1533533"]
[WhiteElo "2430"]
[BlackElo "2518"]
[Result "0-1"]
[Round "02"]
[TimeControl "180+2"]
[Date "2023.01.17"]
[WhiteClock "0:00:05"]
[BlackClock "0:00:03"]

1. e4 {[%clk 0:03:00]}  c6 {[%clk 0:02:59]} 2. Nf3 {[%clk 0:02:56]}  d5 {[%clk 0:03:00]} 3. Nc3 {[%clk 0:02:56]}  dxe4 {[%clk 0:03:01]} 4. Nxe4 {[%clk 0:02:56]}  Nf6 {[%clk 0:03:02]} 5. Qe2 {[%clk 0:02:55]}  Nxe4 {[%clk 0:03:02]} 6. Qxe4 {[%clk 0:02:56]}  Nd7 {[%clk 0:03:03]} 7. Bc4 {[%clk 0:02:53]}  Nf6 {[%clk 0:03:03]} 8. Ne5 {[%clk 0:02:52]}  e6 {[%clk 0:03:03]} 9. Qe2 {[%clk 0:02:52]}  b5 {[%clk 0:03:04]} 10. Bb3 {[%clk 0:02:52]}  Qc7 {[%clk 0:03:04]} 11. O-O {[%clk 0:02:49]}  Bd6 {[%clk 0:03:04]} 12. d4 {[%clk 0:02:49]}  O-O {[%clk 0:03:04]} 13. c3 {[%clk 0:02:49]}  c5 {[%clk 0:03:03]} 14. Bg5 {[%clk 0:02:45]}  Nd5 {[%clk 0:02:56]} 15. Bxd5 {[%clk 0:02:34]}  exd5 {[%clk 0:02:57]} 16. Qf3 {[%clk 0:02:28]}  Be6 {[%clk 0:02:24]} 17. Bf4 {[%clk 0:02:15]}  c4 {[%clk 0:02:13]} 18. Qg3 {[%clk 0:02:06]}  Rae8 {[%clk 0:01:59]} 19. h4 {[%clk 0:01:59]}  Bf5 {[%clk 0:01:43]} 20. Ng6 {[%clk 0:01:36]}  Bxf4 {[%clk 0:01:43]} 21. Nxf4 {[%clk 0:01:36]}  Qc6 {[%clk 0:01:32]} 22. Qg5 {[%clk 0:01:28]}  Be4 {[%clk 0:01:24]} 23. f3 {[%clk 0:01:19]}  h6 {[%clk 0:01:04]} 24. Qh5 {[%clk 0:01:11]}  Bd3 {[%clk 0:01:05]} 25. Rfe1 {[%clk 0:01:05]}  Qd6 {[%clk 0:00:58]} 26. Qg4 {[%clk 0:00:51]}  a5 {[%clk 0:00:51]} 27. Nh5 {[%clk 0:00:31]}  Bg6 {[%clk 0:00:44]} 28. Nf4 {[%clk 0:00:30]}  b4 {[%clk 0:00:38]} 29. h5 {[%clk 0:00:29]}  Bd3 {[%clk 0:00:37]} 30. Rad1 {[%clk 0:00:29]}  Bc2 {[%clk 0:00:21]} 31. Rc1 {[%clk 0:00:27]}  b3 {[%clk 0:00:17]} 32. a3 {[%clk 0:00:25]}  a4 {[%clk 0:00:17]} 33. Nh3 {[%clk 0:00:19]}  Qf6 {[%clk 0:00:12]} 34. Qf4 {[%clk 0:00:19]}  Qd8 {[%clk 0:00:09]} 35. Re5 {[%clk 0:00:17]}  Rxe5 {[%clk 0:00:08]} 36. dxe5 {[%clk 0:00:18]}  d4 {[%clk 0:00:08]} 37. Qd2 {[%clk 0:00:06]}  dxc3 {[%clk 0:00:05]} 38. Qxc3 {[%clk 0:00:06]}  Qd3 {[%clk 0:00:05]} 39. Qb4 {[%clk 0:00:05]}  Qe3+ {[%clk 0:00:03]} 0-1


[Site "https://www.chess.com"]

[Event "Titled Tuesday Blitz January 17 Late 2023"]
[White "Kadric, Denis"]
[Black "Kochetov, Andrey"]
[WhiteFideId "14403803"]
[BlackFideId "24130532"]
[WhiteElo "2601"]
[BlackElo "2165"]
[Result "1-0"]
[Round "02"]
[TimeControl "180+2"]
[Date "2023.01.17"]
[WhiteClock "0:00:45"]
[BlackClock "0:00:01"]

1. e4 {[%clk 0:03:00]}  c5 {[%clk 0:02:57]} 2. Nc3 {[%clk 0:03:00]}  Nc6 {[%clk 0:02:57]} 3. Nge2 {[%clk 0:02:57]}  d6 {[%clk 0:02:57]} 4. d4 {[%clk 0:02:57]}  cxd4 {[%clk 0:02:57]} 5. Nxd4 {[%clk 0:02:58]}  Nf6 {[%clk 0:02:58]} 6. Bc4 {[%clk 0:02:57]}  e6 {[%clk 0:02:58]} 7. Bb3 {[%clk 0:02:58]}  a6 {[%clk 0:02:58]} 8. O-O {[%clk 0:02:58]}  Qc7 {[%clk 0:02:56]} 9. f4 {[%clk 0:02:59]}  Nxd4 {[%clk 0:02:22]} 10. Qxd4 {[%clk 0:03:00]}  d5 {[%clk 0:02:23]} 11. Kh1 {[%clk 0:02:42]}  dxe4 {[%clk 0:02:19]} 12. Nxe4 {[%clk 0:02:41]}  Be7 {[%clk 0:02:13]} 13. Be3 {[%clk 0:02:12]}  O-O {[%clk 0:02:06]} 14. c3 {[%clk 0:02:10]}  Bd7 {[%clk 0:01:57]} 15. Nxf6+ {[%clk 0:01:58]}  Bxf6 {[%clk 0:01:57]} 16. Qb6 {[%clk 0:01:59]}  Rac8 {[%clk 0:01:29]} 17. Rad1 {[%clk 0:01:53]}  Bb5 {[%clk 0:01:05]} 18. Rfe1 {[%clk 0:01:50]}  Bh4 {[%clk 0:00:52]} 19. g3 {[%clk 0:01:47]}  Bd8 {[%clk 0:00:46]} 20. Qxc7 {[%clk 0:01:43]}  Bxc7 {[%clk 0:00:44]} 21. Rd2 {[%clk 0:01:40]}  Rfd8 {[%clk 0:00:43]} 22. Red1 {[%clk 0:01:40]}  Rxd2 {[%clk 0:00:42]} 23. Rxd2 {[%clk 0:01:41]}  Rd8 {[%clk 0:00:43]} 24. Rxd8+ {[%clk 0:01:40]}  Bxd8 {[%clk 0:00:44]} 25. Kg2 {[%clk 0:01:41]}  Kf8 {[%clk 0:00:41]} 26. Bc2 {[%clk 0:01:35]}  g6 {[%clk 0:00:37]} 27. Be4 {[%clk 0:01:34]}  b6 {[%clk 0:00:28]} 28. b3 {[%clk 0:01:27]}  Ke7 {[%clk 0:00:26]} 29. c4 {[%clk 0:01:24]}  Bd7 {[%clk 0:00:25]} 30. Kf2 {[%clk 0:01:23]}  Kd6 {[%clk 0:00:24]} 31. Bd4 {[%clk 0:01:22]}  f6 {[%clk 0:00:20]} 32. b4 {[%clk 0:01:18]}  Bc6 {[%clk 0:00:10]} 33. Bd3 {[%clk 0:01:11]}  Kc7 {[%clk 0:00:06]} 34. Ke3 {[%clk 0:01:09]}  Be7 {[%clk 0:00:06]} 35. a3 {[%clk 0:01:08]}  a5 {[%clk 0:00:05]} 36. Bc3 {[%clk 0:00:59]}  axb4 {[%clk 0:00:05]} 37. axb4 {[%clk 0:01:00]}  Kd6 {[%clk 0:00:04]} 38. h4 {[%clk 0:00:57]}  Bd8 {[%clk 0:00:04]} 39. Bd4 {[%clk 0:00:53]}  Be8 {[%clk 0:00:03]} 40. c5+ {[%clk 0:00:47]}  bxc5 {[%clk 0:00:04]} 41. Bxc5+ {[%clk 0:00:48]}  Kd5 {[%clk 0:00:02]} 42. Bb1 {[%clk 0:00:47]}  Bb5 {[%clk 0:00:01]} 43. Be4+ {[%clk 0:00:44]}  Kc4 {[%clk 0:00:01]} 44. Bd3+ {[%clk 0:00:45]} 1-0


[Site "https://www.chess.com"]

[Event "Titled Tuesday Blitz January 17 Late 2023"]
[White "Rodrigues, Tiago Pereira"]
[Black "Pichot, Alan"]
[WhiteFideId "2101203"]
[BlackFideId "110973"]
[WhiteElo "2155"]
[BlackElo "2638"]
[Result "0-1"]
[Round "02"]
[TimeControl "180+2"]
[Date "2023.01.17"]
[WhiteClock "0:00:13"]
[BlackClock "0:00:50"]

1. c4 {[%clk 0:02:55]}  g6 {[%clk 0:02:49]} 2. h4 {[%clk 0:02:55]}  h6 {[%clk 0:02:42]} 3. Nc3 {[%clk 0:02:53]}  Bg7 {[%clk 0:02:42]} 4. d3 {[%clk 0:02:54]}  c5 {[%clk 0:02:41]} 5. g3 {[%clk 0:02:54]}  Nc6 {[%clk 0:02:41]} 6. Bg2 {[%clk 0:02:54]}  e6 {[%clk 0:02:38]} 7. Rb1 {[%clk 0:02:53]}  Nge7 {[%clk 0:02:37]} 8. e3 {[%clk 0:02:41]}  d5 {[%clk 0:02:37]} 9. Nge2 {[%clk 0:02:40]}  O-O {[%clk 0:02:35]} 10. O-O {[%clk 0:02:40]}  d4 {[%clk 0:02:29]} 11. Ne4 {[%clk 0:02:38]}  b6 {[%clk 0:02:26]} 12. exd4 {[%clk 0:02:37]}  cxd4 {[%clk 0:02:26]} 13. b4 {[%clk 0:02:31]}  Bb7 {[%clk 0:02:25]} 14. b5 {[%clk 0:02:26]}  Na5 {[%clk 0:02:25]} 15. Ba3 {[%clk 0:02:26]}  f5 {[%clk 0:01:56]} 16. Nd2 {[%clk 0:02:01]}  e5 {[%clk 0:01:55]} 17. f3 {[%clk 0:01:28]}  Qd7 {[%clk 0:01:45]} 18. Bh3 {[%clk 0:01:23]}  h5 {[%clk 0:01:40]} 19. Kh2 {[%clk 0:00:52]}  a6 {[%clk 0:01:28]} 20. bxa6 {[%clk 0:00:50]}  Rxa6 {[%clk 0:01:28]} 21. Ne4 {[%clk 0:00:50]}  Nac6 {[%clk 0:01:25]} 22. Bxe7 {[%clk 0:00:45]}  Qxe7 {[%clk 0:01:24]} 23. Ng5 {[%clk 0:00:44]}  Bf6 {[%clk 0:01:13]} 24. Qd2 {[%clk 0:00:41]}  Nb8 {[%clk 0:01:11]} 25. Rb2 {[%clk 0:00:41]}  Nd7 {[%clk 0:01:11]} 26. Rfb1 {[%clk 0:00:41]}  Bxg5 {[%clk 0:01:10]} 27. hxg5 {[%clk 0:00:40]}  Bxf3 {[%clk 0:01:10]} 28. Ng1 {[%clk 0:00:37]}  Bc6 {[%clk 0:01:10]} 29. Bg2 {[%clk 0:00:33]}  Bxg2 {[%clk 0:01:08]} 30. Kxg2 {[%clk 0:00:34]}  Rfa8 {[%clk 0:01:05]} 31. Nf3 {[%clk 0:00:32]}  Nc5 {[%clk 0:01:06]} 32. Qe2 {[%clk 0:00:30]}  e4 {[%clk 0:01:00]} 33. dxe4 {[%clk 0:00:29]}  d3 {[%clk 0:00:58]} 34. Qe3 {[%clk 0:00:25]}  Qxe4 {[%clk 0:00:56]} 35. Qf2 {[%clk 0:00:17]}  Qxc4 {[%clk 0:00:53]} 36. Rxb6 {[%clk 0:00:13]}  Rxb6 {[%clk 0:00:49]} 37. Rxb6 {[%clk 0:00:14]}  Rxa2 {[%clk 0:00:49]} 38. Rb2 {[%clk 0:00:12]}  Rxb2 {[%clk 0:00:49]} 39. Qxb2 {[%clk 0:00:13]}  Qc2+ {[%clk 0:00:49]} 40. Qxc2 {[%clk 0:00:13]}  dxc2 {[%clk 0:00:50]} 0-1


[Site "https://www.chess.com"]

[Event "Titled Tuesday Blitz January 17 Late 2023"]
[White "Galperin, Platon"]
[Black "Janaszak, Dawid"]
[WhiteFideId "14165414"]
[BlackFideId "1119206"]
[WhiteElo "2528"]
[BlackElo "2316"]
[Result "1-0"]
[Round "02"]
[TimeControl "180+2"]
[Date "2023.01.17"]
[WhiteClock "0:01:51"]
[BlackClock "0:00:50"]

1. Nf3 {[%clk 0:03:00]}  d5 {[%clk 0:02:58]} 2. g3 {[%clk 0:03:00]}  c6 {[%clk 0:02:58]} 3. Bg2 {[%clk 0:03:01]}  Nf6 {[%clk 0:02:59]} 4. O-O {[%clk 0:02:59]}  g6 {[%clk 0:02:59]} 5. d4 {[%clk 0:02:58]}  Bg7 {[%clk 0:02:59]} 6. c4 {[%clk 0:02:56]}  O-O {[%clk 0:03:00]} 7. b3 {[%clk 0:02:55]}  e6 {[%clk 0:02:53]} 8. Nc3 {[%clk 0:02:54]}  Nbd7 {[%clk 0:02:50]} 9. Qc2 {[%clk 0:02:53]}  b6 {[%clk 0:02:48]} 10. e4 {[%clk 0:02:52]}  Bb7 {[%clk 0:02:45]} 11. e5 {[%clk 0:02:48]}  Ne8 {[%clk 0:02:45]} 12. cxd5 {[%clk 0:02:48]}  cxd5 {[%clk 0:02:39]} 13. Ba3 {[%clk 0:02:46]}  Rc8 {[%clk 0:02:34]} 14. Qd2 {[%clk 0:02:45]}  Nc7 {[%clk 0:02:26]} 15. Bxf8 {[%clk 0:02:44]}  Bxf8 {[%clk 0:02:24]} 16. Rac1 {[%clk 0:02:43]}  Ba3 {[%clk 0:02:22]} 17. Rc2 {[%clk 0:02:43]}  Ba6 {[%clk 0:02:22]} 18. Rd1 {[%clk 0:02:43]}  Bb4 {[%clk 0:02:20]} 19. Qc1 {[%clk 0:02:42]}  Ne8 {[%clk 0:02:08]} 20. Bf1 {[%clk 0:02:37]}  Bb7 {[%clk 0:02:05]} 21. Ne2 {[%clk 0:02:20]}  f6 {[%clk 0:01:53]} 22. exf6 {[%clk 0:02:08]}  Nexf6 {[%clk 0:01:53]} 23. Nf4 {[%clk 0:02:08]}  Rxc2 {[%clk 0:01:45]} 24. Qxc2 {[%clk 0:02:09]}  Ne4 {[%clk 0:01:41]} 25. Bb5 {[%clk 0:02:02]}  a6 {[%clk 0:01:28]} 26. Bxd7 {[%clk 0:02:02]}  Qxd7 {[%clk 0:01:29]} 27. Ne5 {[%clk 0:02:02]}  Qe7 {[%clk 0:01:25]} 28. Rc1 {[%clk 0:02:01]}  Bd6 {[%clk 0:01:13]} 29. Nfd3 {[%clk 0:01:59]}  Qf6 {[%clk 0:01:04]} 30. Kg2 {[%clk 0:01:58]}  h5 {[%clk 0:01:02]} 31. h4 {[%clk 0:01:57]}  a5 {[%clk 0:01:01]} 32. f3 {[%clk 0:01:57]}  Qf5 {[%clk 0:00:53]} 33. fxe4 {[%clk 0:01:55]}  dxe4 {[%clk 0:00:54]} 34. Nf4 {[%clk 0:01:54]}  e3+ {[%clk 0:00:54]} 35. Kh2 {[%clk 0:01:54]}  Be4 {[%clk 0:00:52]} 36. Qc8+ {[%clk 0:01:52]}  Bf8 {[%clk 0:00:50]} 37. Qxe6+ {[%clk 0:01:51]} 1-0


[Site "https://www.chess.com"]